[Event "Titled Tuesday Blitz November 14 Early 2023"]
[White "Silva Lucena, Cristian"]
[Black "aghasiyevkamal"]
[WhiteFideId "2232588"]
[WhiteElo "2546"]
[BlackElo "2568"]
[Result "0-1"]
[Round "6"]
[TimeControl "180+1"]
[Date "2023.11.14"]
[WhiteClock "0:02:06"]
[BlackClock "0:01:29"]
[Board "111"]

1. e4 {[%clk 0:03:00]}  e6 {[%clk 0:02:59]} 2. d4 {[%clk 0:03:00]}  d5 {[%clk 0:02:59]} 3. e5 {[%clk 0:03:00]}  c5 {[%clk 0:02:58]} 4. c3 {[%clk 0:03:01]}  Nc6 {[%clk 0:02:44]} 5. Nf3 {[%clk 0:03:01]}  Bd7 {[%clk 0:02:19]} 6. Be2 {[%clk 0:03:00]}  Rc8 {[%clk 0:02:15]} 7. O-O {[%clk 0:02:59]}  a6 {[%clk 0:02:15]} 8. a3 {[%clk 0:02:58]}  cxd4 {[%clk 0:02:10]} 9. cxd4 {[%clk 0:02:58]}  Nge7 {[%clk 0:02:09]} 10. b4 {[%clk 0:02:57]}  Nf5 {[%clk 0:02:08]} 11. Bb2 {[%clk 0:02:57]}  Qb6 {[%clk 0:01:57]} 12. Re1 {[%clk 0:02:42]}  Be7 {[%clk 0:01:54]} 13. h3 {[%clk 0:02:38]}  h5 {[%clk 0:01:51]} 14. Kh1 {[%clk 0:02:29]}  g5 {[%clk 0:01:49]} 15. Nc3 {[%clk 0:02:29]}  g4 {[%clk 0:01:45]} 16. Na4 {[%clk 0:02:29]}  Qa7 {[%clk 0:01:45]} 17. Ng1 {[%clk 0:02:24]}  Ncxd4 {[%clk 0:01:40]} 18. Bf1 {[%clk 0:02:21]}  Nc2 {[%clk 0:01:33]} 19. Nc5 {[%clk 0:02:15]}  Bxc5 {[%clk 0:01:29]} 20. Qxc2 {[%clk 0:02:06]}  Bxf2 {[%clk 0:01:29]} 0-1


[Site "https://www.chess.com"]

[Event "Titled Tuesday Blitz November 14 Early 2023"]
[White "Weetik, Vjacheslav"]
[Black "ATM622"]
[WhiteFideId "4153472"]
[WhiteElo "2805"]
[BlackElo "2433"]
[Result "1-0"]
[Round "6"]
[TimeControl "180+1"]
[Date "2023.11.14"]
[WhiteClock "0:02:33"]
[BlackClock "0:01:58"]
[Board "115"]

1. b4 {[%clk 0:02:59]}  e6 {[%clk 0:02:54]} 2. Bb2 {[%clk 0:02:58]}  d5 {[%clk 0:02:54]} 3. a3 {[%clk 0:02:56]}  Nf6 {[%clk 0:02:54]} 4. e3 {[%clk 0:02:57]}  Be7 {[%clk 0:02:53]} 5. c4 {[%clk 0:02:57]}  O-O {[%clk 0:02:53]} 6. Nf3 {[%clk 0:02:57]}  c5 {[%clk 0:02:53]} 7. bxc5 {[%clk 0:02:49]}  Bxc5 {[%clk 0:02:52]} 8. Qc2 {[%clk 0:02:47]}  Nc6 {[%clk 0:02:45]} 9. cxd5 {[%clk 0:02:45]}  Qxd5 {[%clk 0:02:44]} 10. Nc3 {[%clk 0:02:44]}  Qh5 {[%clk 0:02:43]} 11. Be2 {[%clk 0:02:41]}  e5 {[%clk 0:02:39]} 12. Nb5 {[%clk 0:02:35]}  Bd6 {[%clk 0:01:58]} 13. Nxd6 {[%clk 0:02:33]} 1-0


[Site "https://www.chess.com"]

[Event "Titled Tuesday Blitz November 14 Early 2023"]
[White "LiadCuba"]
[Black "Lukovic, Vladimir"]
[BlackFideId "942952"]
[WhiteElo "2433"]
[BlackElo "2686"]
[Result "1-0"]
[Round "6"]
[TimeControl "180+1"]
[Date "2023.11.14"]
[WhiteClock "0:00:27"]
[BlackClock "0:01:25"]
[Board "116"]

1. d4 {[%clk 0:02:55]}  Nf6 {[%clk 0:02:57]} 2. c4 {[%clk 0:02:55]}  c6 {[%clk 0:02:56]} 3. Nc3 {[%clk 0:02:53]}  d5 {[%clk 0:02:57]} 4. cxd5 {[%clk 0:02:54]}  Nxd5 {[%clk 0:02:56]} 5. e4 {[%clk 0:02:54]}  Nxc3 {[%clk 0:02:56]} 6. bxc3 {[%clk 0:02:54]}  g6 {[%clk 0:02:56]} 7. Bc4 {[%clk 0:02:54]}  Bg7 {[%clk 0:02:56]} 8. Ne2 {[%clk 0:02:54]}  O-O {[%clk 0:02:57]} 9. O-O {[%clk 0:02:52]}  b5 {[%clk 0:02:55]} 10. Bb3 {[%clk 0:02:50]}  a5 {[%clk 0:02:55]} 11. a3 {[%clk 0:02:48]}  Nd7 {[%clk 0:02:53]} 12. Ng3 {[%clk 0:02:27]}  e5 {[%clk 0:02:49]} 13. Be3 {[%clk 0:02:03]}  Bb7 {[%clk 0:02:42]} 14. Qd2 {[%clk 0:01:55]}  Nb6 {[%clk 0:02:36]} 15. Bg5 {[%clk 0:01:48]}  Qc7 {[%clk 0:02:31]} 16. h4 {[%clk 0:01:34]}  c5 {[%clk 0:02:29]} 17. d5 {[%clk 0:01:28]}  c4 {[%clk 0:02:29]} 18. Bc2 {[%clk 0:01:27]}  Nc8 {[%clk 0:02:20]} 19. Bh6 {[%clk 0:01:26]}  Nd6 {[%clk 0:02:18]} 20. h5 {[%clk 0:01:17]}  Qe7 {[%clk 0:02:15]} 21. Rae1 {[%clk 0:01:08]}  Rae8 {[%clk 0:02:13]} 22. Bxg7 {[%clk 0:01:06]}  Kxg7 {[%clk 0:02:13]} 23. f4 {[%clk 0:01:03]}  exf4 {[%clk 0:02:09]} 24. Rxf4 {[%clk 0:01:01]}  Qe5 {[%clk 0:02:06]} 25. Ref1 {[%clk 0:00:58]}  Bc8 {[%clk 0:02:05]} 26. Rf6 {[%clk 0:00:48]}  Re7 {[%clk 0:02:04]} 27. hxg6 {[%clk 0:00:41]}  hxg6 {[%clk 0:01:48]} 28. Qd4 {[%clk 0:00:38]}  Rd8 {[%clk 0:01:44]} 29. R1f3 {[%clk 0:00:29]}  Ne8 {[%clk 0:01:41]} 30. Rxf7+ {[%clk 0:00:27]}  Kg8 {[%clk 0:01:36]} 31. Rf8+ {[%clk 0:00:27]}  Kg7 {[%clk 0:01:34]} 32. R3f7+ {[%clk 0:00:26]}  Rxf7 {[%clk 0:01:33]} 33. Rxf7+ {[%clk 0:00:26]}  Kxf7 {[%clk 0:01:25]} 34. Qxe5 {[%clk 0:00:27]} 1-0


[Site "https://www.chess.com"]

[Event "Titled Tuesday Blitz November 14 Early 2023"]
[White "Khater, Sherif"]
[Black "Yeritsyan, Hayk"]
[WhiteFideId "2034280"]
[BlackFideId "13307320"]
[WhiteElo "2630"]
[BlackElo "2428"]
[Result "1/2-1/2"]
[Round "6"]
[TimeControl "180+1"]
[Date "2023.11.14"]
[WhiteClock "0:00:25"]
[BlackClock "0:01:35"]
[Board "119"]

1. d4 {[%clk 0:03:00]}  Nf6 {[%clk 0:02:59]} 2. Bg5 {[%clk 0:03:00]}  e6 {[%clk 0:02:55]} 3. e4 {[%clk 0:03:00]}  d5 {[%clk 0:02:54]} 4. e5 {[%clk 0:03:00]}  h6 {[%clk 0:02:55]} 5. Be3 {[%clk 0:02:59]}  Nfd7 {[%clk 0:02:55]} 6. c3 {[%clk 0:03:00]}  c5 {[%clk 0:02:55]} 7. f4 {[%clk 0:03:01]}  Nc6 {[%clk 0:02:56]} 8. Nf3 {[%clk 0:03:01]}  cxd4 {[%clk 0:02:56]} 9. cxd4 {[%clk 0:03:00]}  Nb6 {[%clk 0:02:56]} 10. Nc3 {[%clk 0:03:00]}  Bd7 {[%clk 0:02:56]} 11. Qd2 {[%clk 0:03:00]}  Rc8 {[%clk 0:02:57]} 12. Bd3 {[%clk 0:03:01]}  Nb4 {[%clk 0:02:56]} 13. O-O {[%clk 0:02:59]}  Nxd3 {[%clk 0:02:56]} 14. Qxd3 {[%clk 0:03:00]}  a6 {[%clk 0:02:56]} 15. Kh1 {[%clk 0:02:55]}  g6 {[%clk 0:02:56]} 16. h3 {[%clk 0:02:53]}  Be7 {[%clk 0:02:56]} 17. Kh2 {[%clk 0:02:53]}  h5 {[%clk 0:02:55]} 18. Ng5 {[%clk 0:02:53]}  Bxg5 {[%clk 0:02:54]} 19. fxg5 {[%clk 0:02:54]}  O-O {[%clk 0:02:55]} 20. Rf6 {[%clk 0:02:53]}  Nc4 {[%clk 0:02:52]} 21. Raf1 {[%clk 0:02:26]}  Be8 {[%clk 0:02:50]} 22. g4 {[%clk 0:02:23]}  Nxb2 {[%clk 0:02:46]} 23. Qc2 {[%clk 0:01:54]}  Na4 {[%clk 0:02:44]} 24. Bd2 {[%clk 0:01:51]}  Qa5 {[%clk 0:02:42]} 25. R1f3 {[%clk 0:01:51]}  Nxc3 {[%clk 0:02:41]} 26. Rxc3 {[%clk 0:01:49]}  Rxc3 {[%clk 0:02:39]} 27. Bxc3 {[%clk 0:01:50]}  Qa4 {[%clk 0:02:31]} 28. Qd2 {[%clk 0:01:50]}  hxg4 {[%clk 0:02:29]} 29. hxg4 {[%clk 0:01:28]}  Bb5 {[%clk 0:02:25]} 30. Qf2 {[%clk 0:01:26]}  Qd1 {[%clk 0:02:23]} 31. Bb4 {[%clk 0:01:20]}  Qxg4 {[%clk 0:02:22]} 32. Bxf8 {[%clk 0:01:16]}  Qh5+ {[%clk 0:02:22]} 33. Kg1 {[%clk 0:01:10]}  Qxg5+ {[%clk 0:02:23]} 34. Qg2 {[%clk 0:00:59]}  Qxg2+ {[%clk 0:02:17]} 35. Kxg2 {[%clk 0:00:59]}  Kxf8 {[%clk 0:02:18]} 36. Kg3 {[%clk 0:00:59]}  Bd3 {[%clk 0:02:17]} 37. Rf2 {[%clk 0:00:54]}  Ke7 {[%clk 0:02:14]} 38. Kf4 {[%clk 0:00:54]}  b5 {[%clk 0:02:09]} 39. Ke3 {[%clk 0:00:54]}  Bc4 {[%clk 0:02:09]} 40. a3 {[%clk 0:00:54]}  a5 {[%clk 0:02:08]} 41. Rb2 {[%clk 0:00:49]}  Kf8 {[%clk 0:01:59]} 42. Kd2 {[%clk 0:00:48]}  Kg7 {[%clk 0:01:58]} 43. Kc3 {[%clk 0:00:48]}  g5 {[%clk 0:01:59]} 44. Rf2 {[%clk 0:00:45]}  Kg6 {[%clk 0:01:44]} 45. Rf6+ {[%clk 0:00:44]}  Kg7 {[%clk 0:01:44]} 46. Kd2 {[%clk 0:00:35]}  b4 {[%clk 0:01:44]} 47. axb4 {[%clk 0:00:35]}  axb4 {[%clk 0:01:45]} 48. Ke3 {[%clk 0:00:34]}  b3 {[%clk 0:01:44]} 49. Rf2 {[%clk 0:00:33]}  Kg6 {[%clk 0:01:43]} 50. Rf6+ {[%clk 0:00:27]}  Kg7 {[%clk 0:01:42]} 51. Rf2 {[%clk 0:00:28]}  Kg6 {[%clk 0:01:40]} 52. Kf3 {[%clk 0:00:27]}  Kf5 {[%clk 0:01:37]} 53. Ke3+ {[%clk 0:00:25]}  Kg6 {[%clk 0:01:35]} 1/2-1/2


[Site "https://www.chess.com"]

[Event "Titled Tuesday Blitz November 14 Early 2023"]
[White "Buchenau, Frank"]
[Black "Pastar, Slaven"]
[WhiteFideId "4604350"]
[BlackFideId "14402718"]
[WhiteElo "2427"]
[BlackElo "2629"]
[Result "0-1"]
[Round "6"]
[TimeControl "180+1"]
[Date "2023.11.14"]
[WhiteClock "0:00:12"]
[BlackClock "0:01:54"]
[Board "120"]

1. e4 {[%clk 0:02:55]}  b6 {[%clk 0:03:00]} 2. d4 {[%clk 0:02:54]}  Bb7 {[%clk 0:03:00]} 3. Bd3 {[%clk 0:02:54]}  Nf6 {[%clk 0:03:01]} 4. Qe2 {[%clk 0:02:52]}  e6 {[%clk 0:03:01]} 5. Nf3 {[%clk 0:02:48]}  d5 {[%clk 0:03:01]} 6. exd5 {[%clk 0:02:48]}  Qxd5 {[%clk 0:03:00]} 7. c4 {[%clk 0:02:29]}  Qh5 {[%clk 0:02:59]} 8. d5 {[%clk 0:02:27]}  Bb4+ {[%clk 0:02:56]} 9. Bd2 {[%clk 0:02:15]}  Bxd2+ {[%clk 0:02:56]} 10. Nbxd2 {[%clk 0:02:15]}  O-O {[%clk 0:02:55]} 11. dxe6 {[%clk 0:02:09]}  Re8 {[%clk 0:02:54]} 12. O-O {[%clk 0:02:00]}  Rxe6 {[%clk 0:02:54]} 13. Qd1 {[%clk 0:01:58]}  Nbd7 {[%clk 0:02:37]} 14. Qc2 {[%clk 0:01:46]}  Rd8 {[%clk 0:02:22]} 15. Rfe1 {[%clk 0:01:37]}  Rd6 {[%clk 0:02:20]} 16. Ne4 {[%clk 0:01:28]}  Nxe4 {[%clk 0:02:09]} 17. Bxe4 {[%clk 0:01:27]}  Bxe4 {[%clk 0:02:09]} 18. Rxe4 {[%clk 0:01:20]}  Nc5 {[%clk 0:02:08]} 19. Re5 {[%clk 0:01:14]}  Qg6 {[%clk 0:02:07]} 20. Qxg6 {[%clk 0:01:11]}  hxg6 {[%clk 0:02:07]} 21. Re7 {[%clk 0:01:05]}  Ne6 {[%clk 0:01:57]} 22. Re1 {[%clk 0:00:12]}  Kf8 {[%clk 0:01:54]} 0-1


[Site "https://www.chess.com"]

[Event "Titled Tuesday Blitz November 14 Early 2023"]
[White "PoXerStar"]
[Black "Kleiman, Jake"]
[BlackFideId "2020041"]
[WhiteElo "2426"]
[BlackElo "2626"]
[Result "1-0"]
[Round "6"]
[TimeControl "180+1"]
[Date "2023.11.14"]
[WhiteClock "0:00:12"]
[BlackClock "0:00:20"]
[Board "121"]

1. d4 {[%clk 0:02:59]}  d5 {[%clk 0:02:59]} 2. c4 {[%clk 0:02:59]}  c6 {[%clk 0:03:00]} 3. cxd5 {[%clk 0:02:59]}  cxd5 {[%clk 0:02:58]} 4. Nc3 {[%clk 0:02:59]}  Nc6 {[%clk 0:02:53]} 5. Bf4 {[%clk 0:02:59]}  Nf6 {[%clk 0:02:53]} 6. e3 {[%clk 0:02:57]}  a6 {[%clk 0:02:52]} 7. Bd3 {[%clk 0:02:56]}  Bg4 {[%clk 0:02:52]} 8. f3 {[%clk 0:02:57]}  Bh5 {[%clk 0:02:51]} 9. Nge2 {[%clk 0:02:57]}  e6 {[%clk 0:02:51]} 10. Rc1 {[%clk 0:02:55]}  Bd6 {[%clk 0:02:50]} 11. O-O {[%clk 0:02:55]}  O-O {[%clk 0:02:50]} 12. Na4 {[%clk 0:02:47]}  Rc8 {[%clk 0:02:48]} 13. Nc5 {[%clk 0:02:46]}  Bxf4 {[%clk 0:02:28]} 14. Nxf4 {[%clk 0:02:46]}  Qe7 {[%clk 0:02:26]} 15. Nxh5 {[%clk 0:02:41]}  Nxh5 {[%clk 0:02:25]} 16. f4 {[%clk 0:02:29]}  Nf6 {[%clk 0:02:24]} 17. Qd2 {[%clk 0:02:25]}  Nb8 {[%clk 0:02:13]} 18. Rc2 {[%clk 0:02:24]}  Rc7 {[%clk 0:02:04]} 19. Rfc1 {[%clk 0:02:23]}  Nbd7 {[%clk 0:01:53]} 20. Nxd7 {[%clk 0:02:19]}  Rxd7 {[%clk 0:01:53]} 21. Qa5 {[%clk 0:02:05]}  g6 {[%clk 0:01:47]} 22. b4 {[%clk 0:01:53]}  Rfd8 {[%clk 0:01:43]} 23. b5 {[%clk 0:01:53]}  axb5 {[%clk 0:01:43]} 24. Bxb5 {[%clk 0:01:53]}  Rd6 {[%clk 0:01:44]} 25. Rc7 {[%clk 0:01:53]}  Qf8 {[%clk 0:01:44]} 26. Rxb7 {[%clk 0:01:52]}  Qh6 {[%clk 0:01:33]} 27. Be2 {[%clk 0:01:33]}  g5 {[%clk 0:01:27]} 28. Rf1 {[%clk 0:01:33]}  Ne4 {[%clk 0:01:20]} 29. Bd3 {[%clk 0:01:17]}  Qg6 {[%clk 0:01:15]} 30. fxg5 {[%clk 0:00:34]}  Qxg5 {[%clk 0:01:05]} 31. Bxe4 {[%clk 0:00:29]}  Qxe3+ {[%clk 0:01:05]} 32. Kh1 {[%clk 0:00:29]}  Qxe4 {[%clk 0:01:02]} 33. Rbxf7 {[%clk 0:00:27]}  Qg6 {[%clk 0:00:39]} 34. Qc7 {[%clk 0:00:18]}  Qh5 {[%clk 0:00:24]} 35. Qe7 {[%clk 0:00:12]}  Qg6 {[%clk 0:00:20]} 36. Rf8+ {[%clk 0:00:12]} 1-0


[Site "https://www.chess.com"]

[Event "Titled Tuesday Blitz November 14 Early 2023"]
[White "Bodnaruk, Anastasia"]
[Black "Suspenser17"]
[WhiteFideId "4181751"]
[WhiteElo "2623"]
[BlackElo "2423"]
[Result "1-0"]
[Round "6"]
[TimeControl "180+1"]
[Date "2023.11.14"]
[WhiteClock "0:01:38"]
[BlackClock "0:00:08"]
[Board "122"]

1. e4 {[%clk 0:02:58]}  e5 {[%clk 0:03:00]} 2. Nf3 {[%clk 0:02:58]}  Nc6 {[%clk 0:03:00]} 3. Bc4 {[%clk 0:02:57]}  Nf6 {[%clk 0:03:00]} 4. d3 {[%clk 0:02:56]}  Bc5 {[%clk 0:03:00]} 5. O-O {[%clk 0:02:56]}  d6 {[%clk 0:02:59]} 6. c3 {[%clk 0:02:56]}  a6 {[%clk 0:02:58]} 7. Bb3 {[%clk 0:02:56]}  Ba7 {[%clk 0:02:57]} 8. Re1 {[%clk 0:02:50]}  h6 {[%clk 0:02:56]} 9. h3 {[%clk 0:02:50]}  g5 {[%clk 0:02:49]} 10. Nh2 {[%clk 0:02:48]}  Qe7 {[%clk 0:02:39]} 11. Bd2 {[%clk 0:02:37]}  Bd7 {[%clk 0:02:38]} 12. Na3 {[%clk 0:02:37]}  O-O-O {[%clk 0:02:36]} 13. Nc4 {[%clk 0:02:36]}  Rdg8 {[%clk 0:02:34]} 14. Ne3 {[%clk 0:02:30]}  h5 {[%clk 0:02:33]} 15. g3 {[%clk 0:02:27]}  Bxh3 {[%clk 0:02:22]} 16. Nd5 {[%clk 0:02:22]}  Nxd5 {[%clk 0:02:21]} 17. exd5 {[%clk 0:02:22]}  Nb8 {[%clk 0:02:16]} 18. d4 {[%clk 0:02:21]}  Qf6 {[%clk 0:02:09]} 19. Be3 {[%clk 0:02:21]}  e4 {[%clk 0:02:02]} 20. c4 {[%clk 0:02:20]}  g4 {[%clk 0:01:58]} 21. c5 {[%clk 0:02:19]}  h4 {[%clk 0:01:57]} 22. Rc1 {[%clk 0:02:16]}  hxg3 {[%clk 0:01:51]} 23. fxg3 {[%clk 0:02:16]}  dxc5 {[%clk 0:01:43]} 24. dxc5 {[%clk 0:02:15]}  Qg6 {[%clk 0:01:38]} 25. Qd2 {[%clk 0:02:11]}  Nd7 {[%clk 0:01:35]} 26. c6 {[%clk 0:02:10]}  Bxe3+ {[%clk 0:01:31]} 27. Qxe3 {[%clk 0:02:10]}  Nb6 {[%clk 0:01:28]} 28. cxb7+ {[%clk 0:02:10]}  Kxb7 {[%clk 0:01:29]} 29. Rc6 {[%clk 0:02:10]}  Qh5 {[%clk 0:01:26]} 30. Rec1 {[%clk 0:02:08]}  Bg2 {[%clk 0:01:13]} 31. Rxc7+ {[%clk 0:02:08]}  Ka8 {[%clk 0:01:13]} 32. Qxb6 {[%clk 0:02:02]}  Qxh2+ {[%clk 0:01:11]} 33. Kf2 {[%clk 0:02:02]}  e3+ {[%clk 0:00:47]} 34. Kxe3 {[%clk 0:01:56]}  Qxg3+ {[%clk 0:00:47]} 35. Kd2 {[%clk 0:01:56]}  Qf4+ {[%clk 0:00:43]} 36. Qe3 {[%clk 0:01:56]}  Qb4+ {[%clk 0:00:32]} 37. R1c3 {[%clk 0:01:55]}  Qb8 {[%clk 0:00:22]} 38. Qd3 {[%clk 0:01:50]}  Qb5 {[%clk 0:00:15]} 39. Qd4 {[%clk 0:01:47]}  Qb8 {[%clk 0:00:14]} 40. R3c6 {[%clk 0:01:47]}  Bf1 {[%clk 0:00:12]} 41. Qa4 {[%clk 0:01:39]}  Bb5 {[%clk 0:00:08]} 42. Rxa6+ {[%clk 0:01:38]} 1-0


[Site "https://www.chess.com"]

[Event "Titled Tuesday Blitz November 14 Early 2023"]
[White "Herman, Daniel"]
[Black "Lymar, Vladislav"]
[WhiteFideId "30935008"]
[BlackFideId "14162180"]
[WhiteElo "2417"]
[BlackElo "2563"]
[Result "0-1"]
[Round "6"]
[TimeControl "180+1"]
[Date "2023.11.14"]
[WhiteClock "0:00:04"]
[BlackClock "0:00:15"]
[Board "124"]

1. Nf3 {[%clk 0:03:00]}  d6 {[%clk 0:02:58]} 2. d4 {[%clk 0:02:59]}  Nf6 {[%clk 0:02:56]} 3. c4 {[%clk 0:02:58]}  Nbd7 {[%clk 0:02:55]} 4. Nc3 {[%clk 0:02:57]}  e5 {[%clk 0:02:56]} 5. e4 {[%clk 0:02:57]}  Be7 {[%clk 0:02:56]} 6. Be2 {[%clk 0:02:57]}  O-O {[%clk 0:02:57]} 7. O-O {[%clk 0:02:57]}  c6 {[%clk 0:02:56]} 8. Be3 {[%clk 0:02:49]}  Qe8 {[%clk 0:02:56]} 9. d5 {[%clk 0:02:47]}  Ng4 {[%clk 0:02:28]} 10. Bd2 {[%clk 0:02:46]}  Bd8 {[%clk 0:02:22]} 11. h3 {[%clk 0:02:15]}  Ngf6 {[%clk 0:02:20]} 12. Be3 {[%clk 0:02:16]}  Qe7 {[%clk 0:02:01]} 13. b4 {[%clk 0:01:48]}  Bb6 {[%clk 0:01:55]} 14. Bxb6 {[%clk 0:01:21]}  axb6 {[%clk 0:01:56]} 15. a4 {[%clk 0:01:14]}  Nh5 {[%clk 0:01:39]} 16. g3 {[%clk 0:01:04]}  c5 {[%clk 0:01:27]} 17. Rb1 {[%clk 0:00:58]}  g6 {[%clk 0:01:22]} 18. Kh2 {[%clk 0:00:55]}  f5 {[%clk 0:01:16]} 19. exf5 {[%clk 0:00:44]}  gxf5 {[%clk 0:01:17]} 20. Nh4 {[%clk 0:00:33]}  Nf4 {[%clk 0:01:10]} 21. Bf3 {[%clk 0:00:14]}  e4 {[%clk 0:01:03]} 22. Bg2 {[%clk 0:00:09]}  Nxg2 {[%clk 0:00:51]} 23. Nxg2 {[%clk 0:00:10]}  Ne5 {[%clk 0:00:52]} 24. Qe2 {[%clk 0:00:08]}  Nf3+ {[%clk 0:00:50]} 25. Kh1 {[%clk 0:00:08]}  Qg7 {[%clk 0:00:34]} 26. Nf4 {[%clk 0:00:09]}  Qxc3 {[%clk 0:00:33]} 27. bxc5 {[%clk 0:00:08]}  bxc5 {[%clk 0:00:30]} 28. Rb6 {[%clk 0:00:09]}  Qf6 {[%clk 0:00:23]} 29. g4 {[%clk 0:00:09]}  Qh6 {[%clk 0:00:22]} 30. Nh5 {[%clk 0:00:09]}  fxg4 {[%clk 0:00:20]} 31. hxg4 {[%clk 0:00:09]}  Bxg4 {[%clk 0:00:20]} 32. Kg2 {[%clk 0:00:07]}  Nh4+ {[%clk 0:00:15]} 33. Kg3 {[%clk 0:00:07]}  Bxe2 {[%clk 0:00:15]} 34. Kxh4 {[%clk 0:00:04]}  Qxh5+ {[%clk 0:00:15]} 0-1


[Site "https://www.chess.com"]

[Event "Titled Tuesday Blitz November 14 Early 2023"]
[White "Sharapov, Evgeny"]
[Black "ChessLebaneseSalah"]
[WhiteFideId "14103133"]
[WhiteElo "2558"]
[BlackElo "2409"]
[Result "1/2-1/2"]
[Round "6"]
[TimeControl "180+1"]
[Date "2023.11.14"]
[WhiteClock "0:01:29"]
[BlackClock "0:00:20"]
[Board "125"]

1. c4 {[%clk 0:02:59]}  c6 {[%clk 0:02:54]} 2. Nc3 {[%clk 0:02:58]}  d5 {[%clk 0:02:53]} 3. cxd5 {[%clk 0:02:59]}  cxd5 {[%clk 0:02:54]} 4. d4 {[%clk 0:02:59]}  Nf6 {[%clk 0:02:54]} 5. Nf3 {[%clk 0:03:00]}  Nc6 {[%clk 0:02:54]} 6. Bf4 {[%clk 0:03:00]}  a6 {[%clk 0:02:54]} 7. Rc1 {[%clk 0:02:59]}  e6 {[%clk 0:02:50]} 8. e3 {[%clk 0:02:59]}  Bd6 {[%clk 0:02:50]} 9. Bxd6 {[%clk 0:02:59]}  Qxd6 {[%clk 0:02:51]} 10. Bd3 {[%clk 0:02:59]}  O-O {[%clk 0:02:51]} 11. O-O {[%clk 0:02:59]}  Bd7 {[%clk 0:02:45]} 12. a3 {[%clk 0:02:58]}  Rfc8 {[%clk 0:02:44]} 13. b4 {[%clk 0:02:58]}  a5 {[%clk 0:02:24]} 14. b5 {[%clk 0:02:55]}  Ne7 {[%clk 0:02:22]} 15. Qb3 {[%clk 0:02:52]}  Rc7 {[%clk 0:02:09]} 16. Rc2 {[%clk 0:02:52]}  Rac8 {[%clk 0:02:08]} 17. Rfc1 {[%clk 0:02:52]}  b6 {[%clk 0:02:05]} 18. Ne5 {[%clk 0:02:50]}  Be8 {[%clk 0:01:59]} 19. f4 {[%clk 0:02:44]}  Nf5 {[%clk 0:01:48]} 20. Bxf5 {[%clk 0:02:40]}  exf5 {[%clk 0:01:49]} 21. g3 {[%clk 0:02:30]}  g6 {[%clk 0:01:44]} 22. h4 {[%clk 0:02:19]}  Ne4 {[%clk 0:01:34]} 23. Nxe4 {[%clk 0:02:19]}  fxe4 {[%clk 0:01:34]} 24. Rxc7 {[%clk 0:02:18]}  Rxc7 {[%clk 0:01:35]} 25. Rxc7 {[%clk 0:02:09]}  Qxc7 {[%clk 0:01:35]} 26. Qb2 {[%clk 0:02:04]}  h5 {[%clk 0:01:27]} 27. Nc6 {[%clk 0:02:04]}  Qd6 {[%clk 0:01:19]} 28. Qc3 {[%clk 0:02:03]}  Kf8 {[%clk 0:01:14]} 29. a4 {[%clk 0:01:58]}  Bd7 {[%clk 0:01:01]} 30. Ne5 {[%clk 0:01:55]}  Be8 {[%clk 0:00:54]} 31. Qc8 {[%clk 0:01:49]}  Ke7 {[%clk 0:00:51]} 32. Nc6+ {[%clk 0:01:48]}  Bxc6 {[%clk 0:00:41]} 33. bxc6 {[%clk 0:01:48]}  Qa3 {[%clk 0:00:21]} 34. Qd7+ {[%clk 0:01:42]}  Kf8 {[%clk 0:00:19]} 35. c7 {[%clk 0:01:29]}  Qxe3+ {[%clk 0:00:19]} 36. Kg2 {[%clk 0:01:29]}  Qe2+ {[%clk 0:00:19]} 37. Kh3 {[%clk 0:01:28]}  Qf1+ {[%clk 0:00:18]} 38. Kh2 {[%clk 0:01:28]}  Qf2+ {[%clk 0:00:18]} 39. Kh1 {[%clk 0:01:28]}  Qf1+ {[%clk 0:00:19]} 40. Kh2 {[%clk 0:01:28]}  Qf2+ {[%clk 0:00:20]} 41. Kh1 {[%clk 0:01:28]}  Qf1+ {[%clk 0:00:20]} 42. Kh2 {[%clk 0:01:29]} 1/2-1/2


[Site "https://www.chess.com"]